[Event "Early-Titled-Tuesday-Blitz-January-16-2024"]
[Site "Chess.com"]
[Date "2024.01.16"]
[Round "7"]
[White "vanyakuba"]
[Black "DanilNajdin"]
[Result "1-0"]
[WhiteElo "2329"]
[BlackElo "2483"]
[TimeControl "180+1"]
[EndTime "9:23:24 PST"]
[Termination "vanyakuba won on time"]

1. e4 {[%clk 0:03:00.9]} 1... c5 {[%clk 0:02:20.7]} 2. c3 {[%clk 0:03:00.7]}
2... Nf6 {[%clk 0:02:19.6]} 3. e5 {[%clk 0:03:01.1]} 3... Nd5 {[%clk 0:02:20.2]}
4. d4 {[%clk 0:03:01.9]} 4... d6 {[%clk 0:02:19.3]} 5. Nf3 {[%clk 0:02:48.5]}
5... cxd4 {[%clk 0:02:19]} 6. cxd4 {[%clk 0:02:48.2]} 6... Nc6 {[%clk
0:02:17.9]} 7. Bc4 {[%clk 0:02:47.5]} 7... Nb6 {[%clk 0:02:17.9]} 8. Bb5 {[%clk
0:02:47.7]} 8... dxe5 {[%clk 0:02:07.6]} 9. Nxe5 {[%clk 0:02:47.7]} 9... Bd7
{[%clk 0:02:00.2]} 10. Nxd7 {[%clk 0:02:47.8]} 10... Qxd7 {[%clk 0:02:00.6]} 11.
Nc3 {[%clk 0:02:48.1]} 11... O-O-O {[%clk 0:02:00.3]} 12. Be3 {[%clk 0:02:29.8]}
12... e6 {[%clk 0:01:51.2]} 13. O-O {[%clk 0:02:28]} 13... a6 {[%clk 0:01:49.3]}
14. Be2 {[%clk 0:01:57.2]} 14... Nxd4 {[%clk 0:01:48.3]} 15. Bxd4 {[%clk
0:01:56.8]} 15... Qxd4 {[%clk 0:01:48.2]} 16. Qb3 {[%clk 0:01:55.5]} 16... Qb4
{[%clk 0:01:45.1]} 17. Qc2 {[%clk 0:01:53.7]} 17... Kb8 {[%clk 0:01:43.1]} 18.
a3 {[%clk 0:01:46]} 18... Qf4 {[%clk 0:01:35.6]} 19. g3 {[%clk 0:01:15.9]} 19...
Qf6 {[%clk 0:01:11.9]} 20. Qb3 {[%clk 0:01:11.5]} 20... Ka7 {[%clk 0:01:07.7]}
21. a4 {[%clk 0:00:55]} 21... Nd5 {[%clk 0:01:04.1]} 22. a5 {[%clk 0:00:46.5]}
22... Nxc3 {[%clk 0:00:50]} 23. Qb6+ {[%clk 0:00:29.5]} 23... Ka8 {[%clk
0:00:49.9]} 24. Bxa6 {[%clk 0:00:19.2]} 24... Rd7 {[%clk 0:00:27.1]} 25. bxc3
{[%clk 0:00:19.3]} 25... e5 {[%clk 0:00:18.3]} 26. Bb5 {[%clk 0:00:09.9]} 26...
Rd6 {[%clk 0:00:15.1]} 27. Qc7 {[%clk 0:00:05.5]} 27... Qd8 {[%clk 0:00:14.3]}
28. Qc4 {[%clk 0:00:04.1]} 28... Be7 {[%clk 0:00:08.2]} 29. a6 {[%clk
0:00:04.5]} 29... b6 {[%clk 0:00:07.2]} 30. Qe4+ {[%clk 0:00:04.4]} 30... Rd5
{[%clk 0:00:04.5]} 31. Bc6+ {[%clk 0:00:04.1]} 31... Ka7 {[%clk 0:00:04.8]} 32.
Bxd5 {[%clk 0:00:04.6]} 32... g6 {[%clk 0:00:04.4]} 33. Bc4 {[%clk 0:00:04.9]}
33... Qc7 {[%clk 0:00:04.2]} 34. Qb7+ {[%clk 0:00:05]} 34... Qxb7 {[%clk
0:00:04.2]} 35. axb7+ {[%clk 0:00:05.9]} 35... Kxb7 {[%clk 0:00:05.1]} 36. Bxf7
{[%clk 0:00:05.5]} 36... Kc6 {[%clk 0:00:04.9]} 37. c4 {[%clk 0:00:04.8]} 37...
Rf8 {[%clk 0:00:05.5]} 38. Bd5+ {[%clk 0:00:05.2]} 38... Kc5 {[%clk 0:00:06.4]}
39. Kg2 {[%clk 0:00:06.1]} 39... Kd4 {[%clk 0:00:06.4]} 40. Rab1 {[%clk
0:00:06.2]} 40... Bc5 {[%clk 0:00:06.8]} 41. Rfd1+ {[%clk 0:00:06.3]} 41... Kc3
{[%clk 0:00:07.1]} 42. Rbc1+ {[%clk 0:00:06.2]} 42... Kb2 {[%clk 0:00:07]} 43.
Rb1+ {[%clk 0:00:05.7]} 43... Kc2 {[%clk 0:00:06.8]} 44. Rf1 {[%clk 0:00:06.2]}
44... g5 {[%clk 0:00:05]} 45. Rb5 {[%clk 0:00:06.3]} 45... g4 {[%clk 0:00:04.7]}
46. Rxc5 {[%clk 0:00:06.3]} 46... bxc5 {[%clk 0:00:04.7]} 47. Be4+ {[%clk
0:00:06.4]} 47... Kc3 {[%clk 0:00:04.2]} 48. Bd5 {[%clk 0:00:06.7]} 48... h5
{[%clk 0:00:03.3]} 49. Re1 {[%clk 0:00:07]} 49... Kd4 {[%clk 0:00:02.8]} 50.
Re4+ {[%clk 0:00:07.1]} 50... Kd3 {[%clk 0:00:03]} 51. Rxe5 {[%clk 0:00:07.4]}
51... Rh8 {[%clk 0:00:02.9]} 52. Bf7 {[%clk 0:00:05.8]} 52... h4 {[%clk
0:00:01.9]} 53. gxh4 {[%clk 0:00:05.6]} 1-0

[Event "Early-Titled-Tuesday-Blitz-January-16-2024"]
[Site "Chess.com"]
[Date "2024.01.16"]
[Round "7"]
[White "Cheer_Down"]
[Black "JCVanDamme10"]
[Result "0-1"]
[WhiteElo "2496"]
[BlackElo "2330"]
[TimeControl "180+1"]
[EndTime "9:23:27 PST"]
[Termination "JCVanDamme10 won on time"]

1. d4 {[%clk 0:03:00.9]} 1... d5 {[%clk 0:02:59.5]} 2. c4 {[%clk 0:03:00.9]}
2... c6 {[%clk 0:02:59.9]} 3. Nf3 {[%clk 0:02:59.8]} 3... Nf6 {[%clk 0:02:59.8]}
4. Nc3 {[%clk 0:02:59.1]} 4... g6 {[%clk 0:02:55.5]} 5. cxd5 {[%clk 0:02:57.4]}
5... cxd5 {[%clk 0:02:54.5]} 6. Bf4 {[%clk 0:02:57.6]} 6... Nc6 {[%clk
0:02:54.6]} 7. e3 {[%clk 0:02:57.2]} 7... a6 {[%clk 0:02:53.6]} 8. h3 {[%clk
0:02:54.2]} 8... Bg7 {[%clk 0:02:54]} 9. Rc1 {[%clk 0:02:53.9]} 9... O-O {[%clk
0:02:51.5]} 10. Bd3 {[%clk 0:02:53.7]} 10... b5 {[%clk 0:02:31.4]} 11. O-O
{[%clk 0:02:45.7]} 11... Bb7 {[%clk 0:02:30.1]} 12. Qe2 {[%clk 0:02:41.1]} 12...
Rc8 {[%clk 0:02:25]} 13. Nd2 {[%clk 0:02:34]} 13... Na5 {[%clk 0:02:23.4]} 14.
Nb3 {[%clk 0:02:31]} 14... Nxb3 {[%clk 0:02:20.1]} 15. axb3 {[%clk 0:02:31.9]}
15... Qa5 {[%clk 0:02:19.7]} 16. Rc2 {[%clk 0:02:23.9]} 16... Qb4 {[%clk
0:02:19]} 17. Rfc1 {[%clk 0:02:10.5]} 17... Qxb3 {[%clk 0:02:18.3]} 18. Nb1
{[%clk 0:02:06]} 18... Rxc2 {[%clk 0:02:11]} 19. Rxc2 {[%clk 0:02:06.9]} 19...
Rc8 {[%clk 0:02:08.9]} 20. Rxc8+ {[%clk 0:02:04.8]} 20... Bxc8 {[%clk
0:02:09.1]} 21. Bc7 {[%clk 0:01:41.7]} 21... Bf5 {[%clk 0:01:59.1]} 22. Bxf5
{[%clk 0:01:40.7]} 22... gxf5 {[%clk 0:01:59.8]} 23. Ba5 {[%clk 0:01:38.1]}
23... Qa2 {[%clk 0:01:54.7]} 24. Na3 {[%clk 0:01:34.2]} 24... Ne4 {[%clk
0:01:47.5]} 25. Bb4 {[%clk 0:01:26]} 25... e6 {[%clk 0:01:38.1]} 26. f3 {[%clk
0:01:25]} 26... Ng3 {[%clk 0:01:30.3]} 27. Qc2 {[%clk 0:01:23.3]} 27... Qa1+
{[%clk 0:01:26.5]} 28. Kf2 {[%clk 0:01:17.8]} 28... Nh1+ {[%clk 0:01:21.3]} 29.
Ke2 {[%clk 0:01:17.3]} 29... h6 {[%clk 0:01:17.5]} 30. Qb1 {[%clk 0:00:57.3]}
30... Qxb1 {[%clk 0:01:17.3]} 31. Nxb1 {[%clk 0:00:58.2]} 31... f4 {[%clk
0:01:17.7]} 32. Bd6 {[%clk 0:00:53.1]} 32... Ng3+ {[%clk 0:01:12.9]} 33. Kf2
{[%clk 0:00:52.6]} 33... fxe3+ {[%clk 0:00:48.2]} 34. Kxg3 {[%clk 0:00:51.3]}
34... Bxd4 {[%clk 0:00:48.8]} 35. Nc3 {[%clk 0:00:47.1]} 35... f5 {[%clk
0:00:45.2]} 36. f4 {[%clk 0:00:37.5]} 36... e2 {[%clk 0:00:34]} 37. Nxe2 {[%clk
0:00:36]} 37... Bxb2 {[%clk 0:00:34.6]} 38. Kf3 {[%clk 0:00:33.5]} 38... a5
{[%clk 0:00:33.9]} 39. Ke3 {[%clk 0:00:33.7]} 39... a4 {[%clk 0:00:33.8]} 40.
Nd4 {[%clk 0:00:32.3]} 40... a3 {[%clk 0:00:25.7]} 41. Bxa3 {[%clk 0:00:24.7]}
41... Bxa3 {[%clk 0:00:25.8]} 42. Nxb5 {[%clk 0:00:25.2]} 42... Bc5+ {[%clk
0:00:25.6]} 43. Kf3 {[%clk 0:00:21.1]} 43... Kf7 {[%clk 0:00:24.5]} 44. g4
{[%clk 0:00:21.4]} 44... Kg6 {[%clk 0:00:20.6]} 45. Nc7 {[%clk 0:00:19.6]} 45...
Kf6 {[%clk 0:00:17.2]} 46. Nb5 {[%clk 0:00:16.9]} 46... fxg4+ {[%clk 0:00:14.9]}
47. hxg4 {[%clk 0:00:16.8]} 47... Ke7 {[%clk 0:00:13.5]} 48. Nc3 {[%clk
0:00:14.4]} 48... Bd4 {[%clk 0:00:12]} 49. Ne2 {[%clk 0:00:14.2]} 49... Bf6
{[%clk 0:00:12.6]} 50. Ng3 {[%clk 0:00:13.6]} 50... Kd6 {[%clk 0:00:11.6]} 51.
Nh5 {[%clk 0:00:13.9]} 51... Bh8 {[%clk 0:00:10.8]} 52. g5 {[%clk 0:00:12.1]}
52... hxg5 {[%clk 0:00:10.8]} 53. fxg5 {[%clk 0:00:12.5]} 53... Ke7 {[%clk
0:00:10.1]} 54. Nf4 {[%clk 0:00:11.1]} 54... Be5 {[%clk 0:00:07.9]} 55. Nh5
{[%clk 0:00:05]} 55... Kf7 {[%clk 0:00:06.1]} 0-1

[Event "Early-Titled-Tuesday-Blitz-January-16-2024"]
[Site "Chess.com"]
[Date "2024.01.16"]
[Round "7"]
[White "Allion2017"]
[Black "laiciffOneslraCsungaM"]
[Result "0-1"]
[WhiteElo "2041"]
[BlackElo "2375"]
[TimeControl "180+1"]
[EndTime "9:23:28 PST"]
[Termination "laiciffOneslraCsungaM won on time"]

1. d4 {[%clk 0:02:58.7]} 1... Nf6 {[%clk 0:02:59.7]} 2. c4 {[%clk 0:02:59.1]}
2... c5 {[%clk 0:02:59.9]} 3. d5 {[%clk 0:02:56.3]} 3... e6 {[%clk 0:02:59.9]}
4. Nc3 {[%clk 0:02:54.8]} 4... exd5 {[%clk 0:02:59.7]} 5. cxd5 {[%clk
0:02:55.5]} 5... d6 {[%clk 0:03:00.3]} 6. Nf3 {[%clk 0:02:56]} 6... g6 {[%clk
0:02:48.4]} 7. g3 {[%clk 0:02:55.9]} 7... Bg7 {[%clk 0:02:44.4]} 8. Bg2 {[%clk
0:02:55.8]} 8... O-O {[%clk 0:02:44.1]} 9. O-O {[%clk 0:02:52.7]} 9... Re8
{[%clk 0:02:44.4]} 10. Nd2 {[%clk 0:02:48.2]} 10... Nbd7 {[%clk 0:02:41.1]} 11.
a4 {[%clk 0:02:45.6]} 11... b6 {[%clk 0:02:38.6]} 12. h3 {[%clk 0:02:44.8]}
12... a6 {[%clk 0:02:36.1]} 13. Nc4 {[%clk 0:02:40]} 13... Ne5 {[%clk
0:02:31.3]} 14. Na3 {[%clk 0:02:40.5]} 14... Nh5 {[%clk 0:02:27.4]} 15. f4
{[%clk 0:02:22.8]} 15... Nxg3 {[%clk 0:02:15.3]} 16. fxe5 {[%clk 0:02:21.1]}
16... Nxf1 {[%clk 0:02:13.7]} 17. Qxf1 {[%clk 0:02:10]} 17... b5 {[%clk
0:02:13.7]} 18. axb5 {[%clk 0:02:04.1]} 18... axb5 {[%clk 0:02:12.5]} 19. Ncxb5
{[%clk 0:01:58.2]} 19... Bxe5 {[%clk 0:02:12.6]} 20. Qf3 {[%clk 0:01:46.5]}
20... Bd7 {[%clk 0:02:02.1]} 21. Rb1 {[%clk 0:01:42.5]} 21... Qb6 {[%clk
0:01:47.9]} 22. Nc3 {[%clk 0:01:39.4]} 22... Qb3 {[%clk 0:01:20.2]} 23. Bd2
{[%clk 0:01:23]} 23... Bf5 {[%clk 0:00:41.1]} 24. e4 {[%clk 0:01:00.9]} 24...
Bd4+ {[%clk 0:00:40.7]} 25. Kh1 {[%clk 0:00:59.2]} 25... Bxc3 {[%clk 0:00:25.3]}
26. Bxc3 {[%clk 0:00:56]} 26... Rxe4 {[%clk 0:00:18.6]} 27. Rf1 {[%clk
0:00:44.5]} 27... Qxd5 {[%clk 0:00:15.4]} 28. Qg3 {[%clk 0:00:40.7]} 28... Qe6
{[%clk 0:00:08]} 29. Bxe4 {[%clk 0:00:38.1]} 29... Bxe4+ {[%clk 0:00:08.9]} 30.
Kh2 {[%clk 0:00:38]} 30... d5 {[%clk 0:00:09.1]} 31. Nb5 {[%clk 0:00:19.8]}
31... d4 {[%clk 0:00:08.9]} 32. Nxd4 {[%clk 0:00:19.6]} 32... cxd4 {[%clk
0:00:08.9]} 33. Bxd4 {[%clk 0:00:20.1]} 33... Rc8 {[%clk 0:00:06.5]} 34. Bc3
{[%clk 0:00:19.9]} 34... Rd8 {[%clk 0:00:06.1]} 35. Rf2 {[%clk 0:00:18.9]} 35...
Bf5 {[%clk 0:00:06]} 36. Qf4 {[%clk 0:00:17.3]} 36... Rd1 {[%clk 0:00:06.1]} 37.
Qh6 {[%clk 0:00:13.6]} 37... Qd6+ {[%clk 0:00:04]} 38. Qf4 {[%clk 0:00:11.4]}
38... Qxf4+ {[%clk 0:00:03.3]} 39. Rxf4 {[%clk 0:00:11.5]} 39... Kf8 {[%clk
0:00:04]} 40. Rc4 {[%clk 0:00:10.4]} 40... Ke7 {[%clk 0:00:04]} 41. Rc7+ {[%clk
0:00:10.2]} 41... Ke6 {[%clk 0:00:04]} 42. Rc6+ {[%clk 0:00:10.5]} 42... Rd6
{[%clk 0:00:04]} 43. Rc7 {[%clk 0:00:10.6]} 43... Rd7 {[%clk 0:00:03.7]} 44.
Rc6+ {[%clk 0:00:10.5]} 44... Kd5 {[%clk 0:00:04]} 45. Rf6 {[%clk 0:00:09]}
45... Ke4 {[%clk 0:00:04.2]} 46. Kg3 {[%clk 0:00:08.2]} 46... h5 {[%clk
0:00:04.6]} 47. h4 {[%clk 0:00:07.7]} 47... Rd3+ {[%clk 0:00:05]} 48. Kg2 {[%clk
0:00:06]} 48... Be6 {[%clk 0:00:03]} 49. Rf2 {[%clk 0:00:02.5]} 49... Rh3 {[%clk
0:00:03.3]} 50. Re2+ {[%clk 0:00:01.8]} 50... Kd3 {[%clk 0:00:03.1]} 51. Bf6
{[%clk 0:00:01.4]} 51... Kxe2 {[%clk 0:00:02.7]} 0-1

[Event "Early-Titled-Tuesday-Blitz-January-16-2024"]
[Site "Chess.com"]
[Date "2024.01.16"]
[Round "7"]
[White "ZuraTqebuchava"]
[Black "abelmat"]
[Result "1-0"]
[WhiteElo "2147"]
[BlackElo "2055"]
[TimeControl "180+1"]
[EndTime "9:23:29 PST"]
[Termination "ZuraTqebuchava won on time"]

1. e4 {[%clk 0:03:00.9]} 1... e6 {[%clk 0:02:44.2]} 2. d3 {[%clk 0:03:00.4]}
2... d5 {[%clk 0:02:44.8]} 3. Nd2 {[%clk 0:03:00.8]} 3... Nc6 {[%clk 0:02:44.1]}
4. g3 {[%clk 0:03:01.2]} 4... Nf6 {[%clk 0:02:43.5]} 5. Bg2 {[%clk 0:03:01.8]}
5... dxe4 {[%clk 0:02:43.9]} 6. dxe4 {[%clk 0:02:58.3]} 6... e5 {[%clk
0:02:43.7]} 7. Ngf3 {[%clk 0:02:56.1]} 7... Bc5 {[%clk 0:02:43.8]} 8. O-O {[%clk
0:02:54.9]} 8... O-O {[%clk 0:02:43.2]} 9. h3 {[%clk 0:02:50.9]} 9... a5 {[%clk
0:02:42.5]} 10. a4 {[%clk 0:02:38.1]} 10... b6 {[%clk 0:02:42.1]} 11. Nb3 {[%clk
0:02:29.9]} 11... Bd6 {[%clk 0:02:32.7]} 12. Re1 {[%clk 0:02:22]} 12... Qe7
{[%clk 0:02:30.6]} 13. Nh4 {[%clk 0:02:08]} 13... g6 {[%clk 0:02:11.7]} 14. Bh6
{[%clk 0:02:06]} 14... Re8 {[%clk 0:02:07.8]} 15. Qf3 {[%clk 0:02:00.4]} 15...
Bb7 {[%clk 0:01:53.8]} 16. Bg5 {[%clk 0:01:56.1]} 16... Kg7 {[%clk 0:01:41.9]}
17. Rad1 {[%clk 0:01:37.7]} 17... Qe6 {[%clk 0:01:37.2]} 18. Bxf6+ {[%clk
0:01:23.3]} 18... Qxf6 {[%clk 0:01:35.4]} 19. Qg4 {[%clk 0:01:24]} 19... Bc8
{[%clk 0:01:30.4]} 20. Qe2 {[%clk 0:01:14.5]} 20... Nb4 {[%clk 0:01:12.1]} 21.
Qd2 {[%clk 0:00:53.9]} 21... Be6 {[%clk 0:01:08.5]} 22. Nc1 {[%clk 0:00:47]}
22... Rad8 {[%clk 0:01:05.2]} 23. Nd3 {[%clk 0:00:41.5]} 23... Nxd3 {[%clk
0:01:01.2]} 24. cxd3 {[%clk 0:00:37.1]} 24... Bb4 {[%clk 0:01:00.5]} 25. Qc2
{[%clk 0:00:31.8]} 25... Bxe1 {[%clk 0:00:53]} 26. Rxe1 {[%clk 0:00:32.4]} 26...
Rd7 {[%clk 0:00:48.5]} 27. Nf3 {[%clk 0:00:25.9]} 27... Red8 {[%clk 0:00:47.3]}
28. Re3 {[%clk 0:00:22.4]} 28... h6 {[%clk 0:00:38]} 29. Qc3 {[%clk 0:00:20.5]}
29... c5 {[%clk 0:00:25.1]} 30. Nxe5 {[%clk 0:00:18.5]} 30... Rd4 {[%clk
0:00:20.9]} 31. Nc6 {[%clk 0:00:16.4]} 31... R8d7 {[%clk 0:00:18.4]} 32. Rf3
{[%clk 0:00:13.8]} 32... Qg5 {[%clk 0:00:15.8]} 33. Nxd4 {[%clk 0:00:11.3]}
33... cxd4 {[%clk 0:00:15.4]} 34. Qe1 {[%clk 0:00:08.7]} 34... Qc5 {[%clk
0:00:14.3]} 35. h4 {[%clk 0:00:08.5]} 35... Rc7 {[%clk 0:00:14.1]} 36. h5 {[%clk
0:00:08.3]} 36... g5 {[%clk 0:00:13.1]} 37. Kh1 {[%clk 0:00:07.3]} 37... Bg4
{[%clk 0:00:12.7]} 38. Kh2 {[%clk 0:00:04.9]} 38... Bxf3 {[%clk 0:00:11.9]} 39.
Bxf3 {[%clk 0:00:05.6]} 39... Qe5 {[%clk 0:00:10.4]} 40. Qe2 {[%clk 0:00:05.6]}
40... Rc5 {[%clk 0:00:08.9]} 41. Bg4 {[%clk 0:00:05.8]} 41... Rc1 {[%clk
0:00:07]} 42. Qf3 {[%clk 0:00:06]} 42... Qf6 {[%clk 0:00:05.6]} 43. Bf5 {[%clk
0:00:05.9]} 43... Kf8 {[%clk 0:00:04]} 44. Kg2 {[%clk 0:00:06.4]} 44... Kg7
{[%clk 0:00:04.1]} 45. Qe2 {[%clk 0:00:06.9]} 45... Rc6 {[%clk 0:00:02.8]} 46.
Qd2 {[%clk 0:00:07.4]} 46... Rd6 {[%clk 0:00:02.1]} 47. b4 {[%clk 0:00:07.6]}
47... axb4 {[%clk 0:00:01.5]} 48. Qxb4 {[%clk 0:00:08.2]} 48... Qe5 {[%clk
0:00:01.8]} 49. Qb2 {[%clk 0:00:05.6]} 1-0

[Event "Early-Titled-Tuesday-Blitz-January-16-2024"]
[Site "Chess.com"]
[Date "2024.01.16"]
[Round "7"]
[White "Vazabanga"]
[Black "maximnovik"]
[Result "1-0"]
[WhiteElo "2688"]
[BlackElo "2513"]
[TimeControl "180+1"]
[EndTime "9:23:30 PST"]
[Termination "Vazabanga won by checkmate"]

1. d4 {[%clk 0:03:00.9]} 1... Nf6 {[%clk 0:03:00.1]} 2. c4 {[%clk 0:03:00.7]}
2... g6 {[%clk 0:03:00.6]} 3. g3 {[%clk 0:03:01.2]} 3... c6 {[%clk 0:02:59.7]}
4. Bg2 {[%clk 0:03:01.7]} 4... d5 {[%clk 0:03:00.3]} 5. Nf3 {[%clk 0:03:02.1]}
5... Bg7 {[%clk 0:03:00.5]} 6. O-O {[%clk 0:03:02.3]} 6... O-O {[%clk
0:03:01.1]} 7. cxd5 {[%clk 0:03:02.9]} 7... cxd5 {[%clk 0:03:00.7]} 8. Ne5
{[%clk 0:03:03.3]} 8... Ng4 {[%clk 0:02:56.3]} 9. Nxg4 {[%clk 0:02:57.3]} 9...
Bxg4 {[%clk 0:02:55.1]} 10. h3 {[%clk 0:02:55.6]} 10... Bf5 {[%clk 0:02:47.3]}
11. Nc3 {[%clk 0:02:54.6]} 11... Nc6 {[%clk 0:02:47.3]} 12. Nxd5 {[%clk
0:02:51.6]} 12... Nxd4 {[%clk 0:02:47.3]} 13. e4 {[%clk 0:02:51.8]} 13... Be6
{[%clk 0:02:45.5]} 14. Be3 {[%clk 0:02:51.7]} 14... Bxd5 {[%clk 0:02:42.8]} 15.
exd5 {[%clk 0:02:24.6]} 15... Nf5 {[%clk 0:02:42.1]} 16. Bc5 {[%clk 0:02:21.6]}
16... Nd6 {[%clk 0:02:30.8]} 17. Qe2 {[%clk 0:02:18.9]} 17... Bf6 {[%clk
0:02:25.8]} 18. Rac1 {[%clk 0:02:17.4]} 18... Qd7 {[%clk 0:02:25.6]} 19. Rc2
{[%clk 0:02:14.1]} 19... a6 {[%clk 0:02:22.5]} 20. Rfc1 {[%clk 0:02:12.9]} 20...
Rac8 {[%clk 0:02:22.6]} 21. h4 {[%clk 0:02:05.2]} 21... h5 {[%clk 0:02:21.1]}
22. b3 {[%clk 0:01:55.6]} 22... Qb5 {[%clk 0:02:09.7]} 23. Qd2 {[%clk
0:01:43.4]} 23... Rcd8 {[%clk 0:02:00.6]} 24. Be3 {[%clk 0:01:37.3]} 24... Nf5
{[%clk 0:01:53.3]} 25. Rc5 {[%clk 0:01:37.1]} 25... Qd7 {[%clk 0:01:50.6]} 26.
Rc7 {[%clk 0:01:35.7]} 26... Qb5 {[%clk 0:01:47.4]} 27. R1c5 {[%clk 0:01:18.5]}
27... Qb6 {[%clk 0:01:47.5]} 28. R5c6 {[%clk 0:01:10.8]} 28... Qb5 {[%clk
0:01:40.9]} 29. Rb6 {[%clk 0:01:08.8]} 29... Qe8 {[%clk 0:01:36.3]} 30. Rbxb7
{[%clk 0:01:08.9]} 30... Nxe3 {[%clk 0:01:35.5]} 31. Qxe3 {[%clk 0:01:09.2]}
31... Rd6 {[%clk 0:01:28.6]} 32. a4 {[%clk 0:01:01.6]} 32... Qd8 {[%clk
0:01:27.3]} 33. b4 {[%clk 0:01:01.1]} 33... Kg7 {[%clk 0:01:22.4]} 34. b5 {[%clk
0:00:52.2]} 34... axb5 {[%clk 0:01:22.5]} 35. axb5 {[%clk 0:00:52.3]} 35... Qa8
{[%clk 0:01:21.1]} 36. Kh2 {[%clk 0:00:40.3]} 36... Qa1 {[%clk 0:01:18.7]} 37.
Qe2 {[%clk 0:00:35.2]} 37... Ra8 {[%clk 0:01:15.2]} 38. Rc2 {[%clk 0:00:18.7]}
38... Qb1 {[%clk 0:01:03.9]} 39. Qc4 {[%clk 0:00:07.9]} 39... Ra1 {[%clk
0:01:00.4]} 40. Rb8 {[%clk 0:00:06.6]} 40... Qg1+ {[%clk 0:00:39.9]} 41. Kh3
{[%clk 0:00:06.3]} 41... Qd1 {[%clk 0:00:29.9]} 42. Qc8 {[%clk 0:00:05.3]} 42...
Kh7 {[%clk 0:00:29.1]} 43. Qg8+ {[%clk 0:00:05.2]} 43... Kh6 {[%clk 0:00:29.3]}
44. Qf8+ {[%clk 0:00:05.7]} 44... Kh7 {[%clk 0:00:28.9]} 45. Qg8+ {[%clk
0:00:05.8]} 45... Kh6 {[%clk 0:00:27.9]} 46. Qf8+ {[%clk 0:00:04.7]} 46... Bg7
{[%clk 0:00:27.3]} 47. Qc8 {[%clk 0:00:04.7]} 47... Rf6 {[%clk 0:00:23.9]} 48.
Rb7 {[%clk 0:00:03.9]} 48... Rf5 {[%clk 0:00:18.8]} 49. Rxe7 {[%clk 0:00:02.9]}
49... Qg4+ {[%clk 0:00:17]} 50. Kh2 {[%clk 0:00:03.5]} 50... Ra3 {[%clk
0:00:14.9]} 51. Re4 {[%clk 0:00:03.9]} 51... Qd1 {[%clk 0:00:13.7]} 52. Qc4
{[%clk 0:00:03.7]} 52... Ra1 {[%clk 0:00:09]} 53. Qe2 {[%clk 0:00:03.9]} 53...
Qg1+ {[%clk 0:00:09.1]} 54. Kh3 {[%clk 0:00:04.6]} 54... Rb1 {[%clk 0:00:08.4]}
55. d6 {[%clk 0:00:04.7]} 55... Bf6 {[%clk 0:00:07.9]} 56. d7 {[%clk 0:00:04.9]}
56... g5 {[%clk 0:00:08.2]} 57. hxg5+ {[%clk 0:00:04.7]} 57... Bxg5 {[%clk
0:00:08.2]} 58. Re5 {[%clk 0:00:03.9]} 58... Rxe5 {[%clk 0:00:07.6]} 59. Qxe5
{[%clk 0:00:04.5]} 59... Qd1 {[%clk 0:00:05.3]} 60. Qh8+ {[%clk 0:00:04.6]}
60... Kg6 {[%clk 0:00:04.9]} 61. Rc6+ {[%clk 0:00:05.1]} 61... f6 {[%clk
0:00:04.4]} 62. Qg8+ {[%clk 0:00:05]} 62... Kh6 {[%clk 0:00:04.3]} 63. Qf8+
{[%clk 0:00:05.1]} 63... Kg6 {[%clk 0:00:04.4]} 64. Be4# {[%clk 0:00:05.8]} 1-0